bitfinex/quotes_SOLUSD_20250101
["timestamp","ask_amount","ask_price","bid_price","bid_amount"]
[1735724779156,21.26694619,188.6,188.48,9.75928734]
[1735724780550,1.26694619,188.6,188.48,9.75928734]
[1735724780748,1.26694619,188.6,188.47,9.75928734]
[1735724781159,1.26694619,188.6,188.46,59.49559792]
[1735724781160,23.776884,188.59,188.46,59.49559792]
[1735724781468,1.26694619,188.58,188.46,58.7]
[1735724783132,23.776884,188.57,188.45,9.75928734]
[1735724783336,0.88513864,188.56,188.44,74.94498734]
[1735724783865,20.0,188.54,188.43,59.49572081]
[1735724784165,0.88513864,188.53,188.43,69.25500815]
[1735724784740,20.88513864,188.54,188.45,9.75928734]
[1735724784943,0.88513864,188.55,188.47,9.75928734]
[1735724785269,1.26694619,188.58,188.47,9.75928734]
[1735724785447,20.0,188.57,188.47,9.75928734]
[1735724785650,0.88513864,188.56,188.47,9.75928734]
[1735724786448,0.88513864,188.56,188.46,0.79569546]
[1735724786658,0.88513864,188.56,188.47,9.75928734]
[1735724786944,1.26694619,188.58,188.47,9.75928734]
[1735724791965,1.26694619,188.58,188.46,69.2549828]
[1735724792464,1.26694619,188.58,188.46,58.7]
[1735724792668,23.776884,188.57,188.46,58.7]
[1735724792876,0.88513864,188.56,188.46,58.7]
[1735724794446,0.88513864,188.57,188.46,58.7]
[1735724794772,0.88513864,188.57,188.46,68.45928734]
[1735724794949,0.88513864,188.57,188.46,58.7]
[1735724796666,0.88513864,188.57,188.45,69.25493564]
[1735724797573,20.0,188.56,188.45,69.25493564]
[1735724797757,0.88513864,188.55,188.45,69.25493564]
[1735724798473,0.88513864,188.55,188.46,9.75928734]
[1735724798847,0.88513864,188.55,188.45,69.25493564]
[1735724800985,0.88513864,188.55,188.46,9.75928734]
[1735724801589,0.88513864,188.55,188.45,69.25493564]
[1735724802177,0.88513864,188.55,188.47,23.02388734]
[1735724802366,0.88513864,188.59,188.49,9.75928734]
[1735724803558,0.88513864,188.59,188.48,69.25497284]
[1735724804383,20.88513864,188.59,188.48,58.7]
[1735724805079,21.26694619,188.59,188.48,58.7]
[1735724808274,14.14143864,188.59,188.48,58.7]
[1735724808472,0.38180755,188.58,188.48,58.7]
[1735724808678,0.88513864,188.57,188.45,69.25497614]
[1735724809267,0.88513864,188.57,188.45,10.55497614]
[1735724809467,0.88513864,188.57,188.46,9.75928734]
[1735724812582,0.88513864,188.57,188.45,10.55497614]
[1735724813390,0.88513864,188.57,188.46,9.75928734]
[1735724814700,0.88513864,188.57,188.46,68.45928734]
[1735724815089,0.38180755,188.58,188.49,68.45928734]
[1735724815268,0.88513864,188.59,188.5,9.75928734]
[1735724817375,0.88513864,188.59,188.51,9.75928734]
[1735724817596,0.88513864,188.59,188.5,9.75928734]
[1735724817794,0.88513864,188.59,188.51,9.75928734]
[1735724818700,1.4042,188.6,188.51,10.55477103]
[1735724819384,0.88513864,188.59,188.5,9.75928734]
[1735724820710,0.88513864,188.59,188.5,68.45928734]
[1735724820994,0.88513864,188.59,188.5,58.7]
[1735724822002,1.4042,188.6,188.51,0.79547938]
[1735724822299,0.88513864,188.59,188.51,0.79547938]
[1735724822514,1.4042,188.6,188.51,0.79547938]
[1735724822886,0.88513864,188.61,188.51,0.79547938]
[1735724823803,1.26694619,188.63,188.52,68.45928734]
[1735724824112,1.26694619,188.63,188.53,0.79536466]
[1735724824776,1.26694619,188.63,188.52,58.7]
[1735724824973,20.0,188.62,188.52,58.7]
[1735724825172,0.88513864,188.61,188.52,58.7]
[1735724828900,20.0,188.6,188.52,58.7]
[1735724829111,0.88513864,188.59,188.47,88.22918734]
[1735724831207,0.88513864,188.59,188.48,9.75928734]
[1735724832807,0.88513864,188.59,188.48,68.45928734]
[1735724833303,0.88513864,188.59,188.48,69.25487153]
[1735724833909,0.88513864,188.59,188.5,9.75928734]
[1735724834214,0.88513864,188.62,188.53,9.75928734]
[1735724834382,20.88513864,188.62,188.52,9.75928734]
[1735724834578,20.88513864,188.62,188.51,69.25475672]
[1735724835911,20.0,188.61,188.51,58.7]
[1735724836227,0.88513864,188.6,188.49,82.51730907]
[1735724836898,0.88513864,188.6,188.49,58.7]
[1735724837293,20.0,188.59,188.49,58.7]
[1735724837487,0.88513864,188.58,188.49,58.7]
[1735724841688,0.88513864,188.58,188.48,58.7]
[1735724843010,20.0,188.59,188.49,0.79558366]
[1735724843324,0.88513864,188.61,188.49,10.554871]
[1735724843711,20.88513864,188.61,188.5,33.53617134]
[1735724843911,5.07363338,188.62,188.52,9.75928734]
[1735724844495,5.07363338,188.62,188.53,23.776884]
[1735724844829,2.28933864,188.64,188.54,69.25465753]
[1735724845531,0.88513864,188.64,188.56,9.75928734]
[1735724845840,4.57030229,188.66,188.58,9.75928734]
[1735724846237,4.57030229,188.66,188.59,0.79511744]
[1735724846608,4.57030229,188.66,188.57,58.7]
[1735724846810,4.57030229,188.66,188.57,68.45928734]
[1735724847031,4.57030229,188.66,188.58,10.55443453]
[1735724847525,2.28933864,188.7,188.62,9.75928734]
[1735724847738,13.2456,188.75,188.62,9.75928734]
[1735724847739,0.88513864,188.71,188.62,9.75928734]
[1735724848036,20.0,188.7,188.62,9.75928734]
[1735724848328,20.0,188.7,188.63,0.7949492]
[1735724848505,0.88513864,188.72,188.63,10.55423654]
[1735724848701,4.57030229,188.73,188.64,92.23617134]
[1735724849042,0.88513864,188.72,188.64,58.7]
[1735724851310,5.45544093,188.73,188.64,68.45928734]
[1735724851511,5.45544093,188.73,188.64,58.7]
[1735724853747,5.45544093,188.73,188.62,58.7]
[1735724855356,20.0,188.7,188.61,58.7]
[1735724855655,0.88513864,188.69,188.59,68.45928734]
[1735724855953,20.0,188.7,188.61,33.53617134]
[1735724856256,0.88513864,188.72,188.62,10.55425208]
[1735724857570,0.88513864,188.72,188.63,23.776884]
[1735724857866,20.88513864,188.75,188.65,9.75928734]
[1735724858427,20.88513864,188.75,188.64,10.55417684]
[1735724858640,0.88513864,188.75,188.65,9.75928734]
[1735724858858,0.88513864,188.77,188.65,68.45928734]
[1735724859044,20.0,188.75,188.65,68.45928734]
[1735724859233,0.88513864,188.77,188.65,68.45928734]
[1735724859787,0.88513864,188.77,188.66,0.7947673]
[1735724860060,0.88513864,188.77,188.66,10.55405464]
[1735724860932,0.88513864,188.77,188.66,0.7947673]
[1735724861762,0.88513864,188.77,188.66,10.55405464]
[1735724862074,6.85964093,188.78,188.67,92.23617134]
[1735724862261,0.88513864,188.77,188.67,92.23617134]
[1735724862876,24.57030229,188.78,188.69,82.476884]
[1735724863861,20.0,188.79,188.69,92.23617134]
[1735724864064,20.0,188.79,188.7,9.75928734]
[1735724864463,20.0,188.79,188.69,88.790484]
[1735724864464,20.0,188.79,188.69,98.54977134]
[1735724864977,0.88513864,188.81,188.71,33.53617134]
[1735724866278,0.88513864,188.81,188.7,0.79461723]
[1735724867285,0.88513864,188.81,188.7,10.55390457]
[1735724868478,0.88513864,188.81,188.7,0.79461723]
[1735724868875,0.88513864,188.81,188.7,59.49461723]
[1735724869381,20.0,188.79,188.7,58.7]
[1735724869679,20.0,188.75,188.65,67.63308187]
[1735724869852,0.88513864,188.74,188.65,67.63308187]
[1735724870646,20.0,188.75,188.65,67.63308187]
[1735724870989,20.0,188.76,188.65,67.63308187]
[1735724871144,0.88513864,188.75,188.65,67.63308187]
[1735724871785,0.88513864,188.75,188.65,59.49478187]
[1735724874187,0.88513864,188.75,188.65,69.25406921]
[1735724874364,20.0,188.76,188.66,23.776884]
[1735724874685,0.88513864,188.77,188.67,0.79474934]
[1735724874877,0.88513864,188.77,188.67,59.49474934]
[1735724877391,24.57030229,188.78,188.68,82.476884]
[1735724877568,4.57030229,188.78,188.69,59.4946427]
[1735724878194,24.57030229,188.78,188.69,59.4946427]
[1735724878369,24.57030229,188.78,188.69,0.7946427]
[1735724878568,24.57030229,188.78,188.68,32.045084]
[1735724878863,4.57030229,188.78,188.68,42.59904909]
[1735724880770,0.88513864,188.8,188.7,23.776884]
[1735724880969,0.88513864,188.8,188.7,24.57146253]
[1735724882188,0.88513864,188.81,188.7,24.57146253]
[1735724883070,5.45544093,188.81,188.7,24.57146253]
[1735724883795,5.45544093,188.81,188.7,83.27146253]
[1735724884501,4.57030229,188.81,188.7,83.27146253]
[1735724884671,0.88513864,188.8,188.7,83.27146253]
[1735724885693,5.45544093,188.81,188.7,83.27146253]
[1735724886787,4.57030229,188.81,188.7,83.27146253]
[1735724887325,4.57030229,188.81,188.72,23.776884]
[1735724887593,4.57030229,188.81,188.74,1.6338]
[1735724887769,4.57030229,188.81,188.75,6.0013]
[1735724888279,0.88513864,188.85,188.75,65.49573668]
[1735724888506,5.45544093,188.85,188.75,65.49573668]
[1735724889800,5.45544093,188.85,188.76,23.776884]
[1735724890006,5.45544093,188.85,188.77,0.79441865]
[1735724890007,4.57030229,188.85,188.77,0.79441865]
[1735724890175,4.57030229,188.85,188.77,59.49441865]
[1735724891221,4.57030229,188.85,188.78,82.476884]
[1735724891399,0.88513864,188.89,188.79,59.49425351]
[1735724891604,6.18288198,188.89,188.79,59.49425351]
[1735724891799,0.88513864,188.88,188.79,59.49425351]
[1735724892205,0.88513864,188.88,188.79,58.7]
[1735724894031,6.18288198,188.87,188.79,58.7]
[1735724894231,0.88513864,188.86,188.75,64.7013]
[1735724894656,0.88513864,188.86,188.76,23.776884]
[1735724895242,0.88513864,188.86,188.75,64.7013]
[1735724896215,0.88513864,188.86,188.75,74.46058734]
[1735724897113,20.0,188.84,188.75,64.7013]
[1735724897334,0.88513864,188.83,188.75,6.0013]
[1735724897933,20.0,188.82,188.74,60.3338]
[1735724898125,0.88513864,188.81,188.74,60.3338]
[1735724898607,0.88513864,188.81,188.74,1.6338]
[1735724898608,20.0,188.8,188.74,1.6338]
[1735724898801,0.88513864,188.79,188.74,1.6338]
[1735724899320,20.0,188.8,188.74,1.6338]
[1735724899519,0.88513864,188.79,188.71,65.3246]
[1735724900028,0.88513864,188.79,188.71,6.6246]
[1735724902206,0.88513864,188.82,188.71,6.6246]
[1735724902608,0.88513864,188.82,188.72,82.476884]
[1735724902930,6.18288198,188.83,188.72,83.27139353]
[1735724903117,6.18288198,188.83,188.72,93.03068087]
[1735724903319,6.18288198,188.83,188.72,92.23617134]
[1735724903618,6.18288198,188.83,188.73,0.79447686]
[1735724904519,20.0,188.85,188.74,58.7]
[1735724904722,20.0,188.85,188.75,0.79437259]
[1735724905040,0.88513864,188.87,188.75,0.79437259]
[1735724905243,0.88513864,188.87,188.75,69.25365993]
[1735724906440,0.88513864,188.87,188.75,59.49437259]
[1735724908816,25.45544093,188.87,188.75,59.49437259]
[1735724910313,25.45544093,188.87,188.76,1.5901]
[1735724910838,25.45544093,188.87,188.76,60.2901]
[1735724912348,25.45544093,188.87,188.77,6.3093]
[1735724912542,20.88513864,188.87,188.77,6.3093]
[1735724912739,20.0,188.86,188.77,6.3093]
[1735724913040,20.0,188.87,188.77,65.80364279]
[1735724913824,20.0,188.88,188.77,65.80364279]
[1735724914224,0.88513864,188.87,188.77,65.80364279]
[1735724914631,20.0,188.88,188.77,65.80364279]
[1735724914919,0.88513864,188.87,188.77,65.80364279]
[1735724915424,20.0,188.88,188.77,65.80364279]
[1735724916325,0.88513864,188.87,188.77,65.80364279]
[1735724917328,20.0,188.88,188.77,65.80364279]
[1735724917537,0.88513864,188.87,188.77,65.80364279]
[1735724917937,20.0,188.88,188.77,65.80364279]
[1735724920548,0.88513864,188.87,188.77,65.80364279]
[1735724920748,20.0,188.86,188.77,65.0093]
[1735724920954,0.88513864,188.85,188.77,65.0093]
[1735724921247,0.88513864,188.87,188.77,65.0093]
[1735724922041,0.88513864,188.88,188.77,65.0093]
[1735724922243,20.88513864,188.88,188.77,65.0093]
[1735724922444,27.06954106,188.88,188.77,65.0093]
[1735724924239,0.88513864,188.9,188.79,60.2946]
[1735724924429,20.0,188.9,188.79,61.0888296]
[1735724924632,0.88513864,188.89,188.79,61.0888296]
[1735724926052,20.0,188.9,188.79,61.0888296]
[1735724926234,20.0,188.9,188.79,74.3304296]
[1735724929565,0.88513864,188.89,188.79,74.3304296]
[1735724931957,4.80576399,188.95,188.79,74.3304296]
[1735724931958,4.87853141,188.96,188.83,8.2836]
[1735724932156,4.87853141,188.96,188.85,78.7]
[1735724932337,4.87853141,188.96,188.86,61.13671571]
[1735724932734,20.88513864,188.96,188.86,61.13671571]
[1735724932967,20.88513864,188.96,188.87,6.6408]
[1735724933152,0.88513864,188.96,188.87,6.6408]
[1735724933354,0.88513864,188.98,188.87,6.6408]
[1735724933867,43.776884,188.97,188.87,6.6408]
[1735724934158,0.88513864,188.96,188.87,6.6408]
[1735724938054,0.88513864,188.96,188.87,65.3408]
[1735724938461,0.88513864,188.96,188.87,6.6408]
[1735724941679,23.776884,188.95,188.87,6.6408]
[1735724941867,0.88513864,188.94,188.87,6.6408]
[1735724942682,23.776884,188.93,188.87,6.6408]
[1735724942855,0.88513864,188.92,188.87,6.6408]
[1735724946288,0.88513864,188.95,188.87,6.6408]
[1735724946782,23.776884,188.95,188.87,6.6408]
[1735724946976,0.88513864,188.94,188.87,6.6408]
[1735724947292,24.66202264,188.95,188.87,6.6408]
[1735724949175,20.0,188.96,188.87,6.6408]
[1735724949987,20.0,188.96,188.88,0.79392991]
[1735724950180,20.88513864,188.98,188.88,0.79392991]
[1735724951160,20.88513864,188.98,188.89,1.6337]
[1735724953088,20.88513864,188.98,188.89,60.3337]
[1735724953290,23.776884,188.97,188.89,60.3337]
[1735724953596,0.88513864,188.96,188.89,60.3337]
[1735724954784,20.0,188.98,188.89,60.3337]
[1735724955017,0.88513864,188.99,188.89,60.3337]
[1735724955169,23.776884,188.98,188.89,61.12753175]
[1735724955584,23.776884,188.98,188.9,6.4083]
[1735724955991,24.66202264,189.0,188.9,6.4083]
[1735724957196,24.66202264,189.0,188.91,0.79377777]
[1735724957766,0.88513864,189.01,188.93,6.4803]
[1735724957992,0.88513864,189.02,188.93,65.973977]
[1735724958371,20.88513864,189.03,188.93,65.973977]
[1735724959279,20.0,189.03,188.94,1.5025]
[1735724959487,23.776884,189.04,188.94,1.5025]
[1735724959706,0.88513864,189.05,188.95,0.79363215]
[1735724960413,23.776884,189.04,188.96,6.6565]
[1735724960797,23.776884,189.04,188.97,1.5025]
[1735724961805,0.88513864,189.05,188.97,1.5025]
[1735724962013,20.0,189.03,188.97,1.5025]
[1735724966892,23.776884,189.02,188.97,1.5025]
[1735724967231,24.66202264,189.02,188.97,1.5025]
[1735724974626,23.776884,189.02,188.97,1.5025]
[1735724976206,18.56033837,189.06,188.97,1.5025]
[1735724976408,0.88513864,189.09,189.0,6.3208]
[1735724976596,0.88513864,189.09,189.0,7.11421192]
[1735724977449,0.88513864,189.11,189.0,7.11421192]
[1735724977839,20.0,189.09,189.0,7.11421192]
[1735724978018,0.88513864,189.08,189.0,7.11421192]
[1735724978429,23.776884,189.07,189.0,7.11421192]
[1735724980924,20.0,189.09,189.0,7.11421192]
[1735724981343,23.776884,189.08,189.0,7.11421192]
[1735724982921,23.776884,189.08,189.01,1.5172]
[1735724984345,20.0,189.09,189.02,0.79335009]
[1735724987815,23.776884,189.08,189.02,0.79335009]
[1735724993233,20.0,189.09,189.02,0.79335009]
[1735724993439,24.66202264,189.11,189.02,0.79335009]
[1735724993842,24.66202264,189.11,189.03,8.0864]
[1735724996346,0.88513864,189.11,189.03,66.7864]
[1735724996554,3.98162704,189.17,189.04,59.49331576]
[1735724996555,0.88513864,189.16,189.04,59.49331576]
[1735724996750,20.0,189.15,189.04,59.49331576]
[1735724996938,0.88513864,189.14,189.04,59.49331576]
[1735724997661,0.88513864,189.14,189.05,8.0864]
[1735724998033,0.88513864,189.14,189.06,0.79315629]
[1735724998852,0.88513864,189.14,189.05,8.0864]
[1735724999047,23.776884,189.13,189.05,8.0864]
[1735724999229,23.776884,189.09,189.0,8.0864]
[1735724999548,23.776884,189.07,189.0,8.0864]
[1735724999754,23.776884,189.05,189.0,8.0864]
[1735724999939,0.88513864,189.04,189.0,8.0864]
[1735725000535,23.776884,189.03,189.0,8.0864]
[1735725000943,23.776884,189.05,189.0,8.0864]
[1735725001249,0.88513864,189.04,189.0,8.0864]
[1735725002447,0.88513864,189.09,189.0,8.0864]
[1735725002953,20.88513864,189.09,189.0,8.87982866]
[1735725003636,23.776884,189.08,189.0,8.87982866]
[1735725005146,0.88513864,189.09,189.0,67.57982866]
[1735725005343,0.88513864,189.09,189.04,58.7]
[1735725005678,3.98214795,189.11,189.06,8.1764]
[1735725005972,3.98214795,189.11,189.07,0.79310919]
[1735725006141,23.776884,189.17,189.07,59.49310919]
[1735725006341,20.88513864,189.16,189.07,59.49310919]
[1735725007566,20.88513864,189.16,189.07,58.7]
[1735725007567,23.776884,189.15,189.07,58.7]
[1735725007774,23.776884,189.13,189.06,8.1764]
[1735725007985,0.88513864,189.12,189.06,8.1764]
[1735725008348,24.66202264,189.15,189.06,8.1764]
[1735725011581,24.93894139,189.15,189.06,8.1764]
[1735725012977,20.0,189.13,189.06,8.1764]
[1735725013177,23.776884,189.11,189.06,8.1764]
[1735725013351,23.776884,189.09,189.06,8.1764]
[1735725013549,0.88513864,189.08,189.06,8.1764]
[1735725014176,21.16205739,189.11,189.06,8.1764]
[1735725015155,23.776884,189.09,189.06,8.1764]
[1735725015364,24.66202264,189.09,189.06,8.1764]
[1735725016193,0.27691875,189.11,189.06,8.1764]
[1735725016483,20.27691875,189.11,189.06,8.1764]
[1735725019359,20.27691875,189.11,188.97,13.2289]
[1735725019360,23.776884,189.07,189.01,7.8867]
[1735725019660,24.05380275,189.1,189.01,7.8867]
[1735725019995,23.776884,189.07,189.01,7.8867]
[1735725021959,20.0,189.08,189.01,7.8867]
[1735725022291,24.05380275,189.1,189.01,7.8867]
[1735725029678,28.33050043,189.1,189.01,7.8867]
[1735725031270,27.83050043,189.1,189.01,7.8867]
[1735725032193,13.2212,189.09,189.01,7.8867]
[1735725032389,20.0,189.06,189.01,7.8867]
[1735725033172,23.776884,189.05,189.01,7.8867]
[1735725033901,20.0,189.06,189.01,7.8867]
[1735725039193,23.776884,189.08,189.01,7.8867]
[1735725042506,4.27669768,189.09,189.01,7.8867]
[1735725042711,13.2191,189.12,189.01,7.8867]
[1735725042893,23.776884,189.11,189.01,7.8867]
[1735725043083,20.0,189.09,189.01,7.8867]
[1735725043906,20.0,189.11,189.02,0.79336714]
[1735725044206,20.0,189.11,189.03,1.5973]
[1735725045074,23.776884,189.09,189.03,1.5973]
[1735725052093,20.0,189.1,189.03,1.5973]
[1735725052416,23.776884,189.09,189.03,1.5973]
[1735725053787,18.82222764,189.14,189.03,1.5973]
[1735725053994,20.0,189.11,189.03,1.5973]
[1735725054195,20.0,189.1,189.03,1.5973]
[1735725054793,20.0,189.11,189.03,1.5973]
[1735725059910,23.776884,189.1,189.03,1.5973]
[1735725060414,20.0,189.1,189.03,1.5973]
[1735725063817,20.0,189.09,189.03,1.5973]
[1735725064020,23.776884,189.08,189.03,1.5973]
[1735725066220,20.0,189.09,189.03,1.5973]
[1735725067214,13.2196,189.12,189.03,1.5973]
[1735725067402,13.2196,189.12,189.04,6.0476]
[1735725068921,23.776884,189.13,189.04,6.84092071]
[1735725069113,23.776884,189.13,189.05,1.6354]
[1735725069794,4.27669768,189.14,189.07,1.6354]
[1735725070214,4.27669768,189.14,189.08,6.0476]
[1735725070693,8.25756598,189.15,189.09,2.42851172]
[1735725071121,23.776884,189.18,189.09,2.42851172]
[1735725071431,20.0,189.16,189.09,2.42851172]
[1735725072529,9.88062532,189.19,189.09,2.42851172]
[1735725072826,9.88062532,189.19,189.09,61.12851172]
[1735725072827,23.776884,189.18,189.09,61.12851172]
[1735725073190,4.27669768,189.19,189.1,6.0476]
[1735725073396,24.27669768,189.19,189.1,6.0476]
[1735725075524,24.27669768,189.19,189.11,1.6354]
[1735725077130,23.776884,189.18,189.11,1.6354]
[1735725079538,24.27669768,189.19,189.11,1.6354]
[1735725079849,24.27669768,189.19,189.12,6.6456]
[1735725080536,24.27669768,189.19,189.13,1.6553]
[1735725081044,4.27669768,189.19,189.13,1.6553]
[1735725081207,13.2102,189.25,189.14,6.6456]
[1735725081413,4.27669768,189.24,189.14,6.6456]
[1735725081806,20.0,189.22,189.14,6.6456]
[1735725082132,20.0,189.22,189.14,7.43839288]
[1735725082306,20.0,189.22,189.15,1.6553]
[1735725082810,20.0,189.22,189.16,8.3009]
[1735725083207,23.776884,189.23,189.17,1.6553]
[1735725085824,43.776884,189.23,189.17,1.6553]
[1735725088115,20.0,189.24,189.17,1.6553]
[1735725088319,23.776884,189.23,189.17,1.6553]
[1735725090937,23.776884,189.24,189.17,1.6553]
[1735725093040,17.48469768,189.28,189.19,1.6282]
[1735725093041,4.27669768,189.28,189.19,1.6282]
[1735725093218,23.776884,189.27,189.2,6.0212]
[1735725093425,23.776884,189.27,189.21,1.6282]
[1735725093749,24.27669768,189.28,189.21,1.6282]
[1735725094345,23.776884,189.27,189.21,1.6282]
[1735725095148,23.776884,189.28,189.21,1.6282]
[1735725100652,20.0,189.29,189.21,1.6282]
[1735725101638,4.27669768,189.32,189.23,1.6282]
[1735725102038,23.776884,189.31,189.23,1.6282]
[1735725102227,23.776884,189.31,189.24,6.0212]
[1735725102435,23.776884,189.31,189.25,1.6282]
[1735725102651,4.27669768,189.32,189.25,1.6282]
[1735725102825,13.201,189.38,189.26,6.0212]
[1735725103025,43.776884,189.34,189.26,6.0212]
[1735725103242,13.201,189.38,189.27,60.3282]
[1735725104260,20.0,189.35,189.27,60.3282]
[1735725104622,23.776884,189.34,189.27,60.3282]
[1735725106151,20.0,189.35,189.27,60.3282]
[1735725107063,23.776884,189.34,189.27,60.3282]
[1735725107430,23.776884,189.37,189.28,7.9517]
[1735725107655,23.776884,189.4,189.28,7.9517]
[1735725107860,5.70371646,189.41,189.29,7.9517]
[1735725108050,5.70371646,189.41,189.29,17.71098734]
[1735725108232,23.776884,189.37,189.29,7.9517]
[1735725108754,20.0,189.38,189.31,6.4422]
[1735725108945,20.0,189.38,189.32,0.79206682]
[1735725109141,20.0,189.38,189.33,1.5095]
[1735725109342,5.70371646,189.41,189.33,1.5095]
[1735725110548,5.70371646,189.41,189.34,6.4422]
[1735725110734,5.70371646,189.47,189.35,2.30150259]
[1735725110943,20.0,189.44,189.35,2.30150259]
[1735725111673,5.70371646,189.47,189.36,7.9517]
[1735725112039,5.70371646,189.47,189.37,7.9517]
[1735725112251,5.70371646,189.47,189.37,8.74356879]
[1735725112861,23.776884,189.46,189.37,8.74356879]
[1735725116056,20.0,189.42,189.37,7.9517]
[1735725116264,23.776884,189.41,189.37,7.9517]
[1735725116838,20.0,189.42,189.37,7.9517]
[1735725117040,23.776884,189.44,189.37,7.9517]
[1735725120671,5.70371646,189.45,189.37,7.9517]
[1735725122149,36.973684,189.44,189.37,7.9517]
[1735725122775,23.776884,189.42,189.37,7.9517]
[1735725127054,23.776884,189.4,189.3,7.6833]
[1735725129170,23.776884,189.38,189.3,7.6833]
[1735725131057,23.776884,189.36,189.3,7.6833]
[1735725131771,5.70371646,189.38,189.3,7.6833]
[1735725131772,23.776884,189.37,189.3,7.6833]
[1735725131952,23.776884,189.37,189.3,8.869292]
[1735725132954,13.2023,189.36,189.3,8.869292]
[1735725137592,23.776884,189.33,189.3,8.869292]
[1735725138885,43.776884,189.31,189.3,2.783292]
[1735725139067,43.776884,189.31,189.3,1.185992]
[1735725139479,36.983384,189.3,189.26,7.868]
[1735725143087,20.0,189.27,189.26,7.868]
[1735725144396,20.0,189.31,189.26,7.868]
[1735725144894,20.0,189.3,189.26,7.868]
[1735725149304,13.204,189.34,189.26,7.868]
[1735725149881,23.776884,189.33,189.26,7.868]
[1735725150373,5.70371646,189.36,189.26,7.868]
[1735725150790,5.70371646,189.36,189.27,0.79229303]
[1735725152612,5.70371646,189.36,189.28,8.1745]
[1735725154503,5.70371646,189.41,189.28,8.1745]
[1735725154900,20.0,189.37,189.28,8.96670225]
[1735725155699,20.0,189.37,189.29,8.1745]
[1735725155901,18.90261646,189.41,189.32,6.6224]
[1735725156103,23.776884,189.4,189.32,6.6224]
[1735725156620,5.70371646,189.4,189.32,6.6224]
[1735725156909,5.70371646,189.44,189.34,6.6224]
[1735725157723,20.0,189.41,189.34,6.6224]
[1735725158601,23.776884,189.43,189.34,6.6224]
[1735725159109,5.70371646,189.44,189.35,1.5567]
[1735725160619,5.70371646,189.44,189.36,6.2051]
[1735725164010,23.776884,189.43,189.36,6.2051]
[1735725164315,20.0,189.4,189.36,6.2051]
[1735725164516,23.776884,189.41,189.36,6.2051]
[1735725165918,5.70371646,189.42,189.36,6.2051]
[1735725166125,23.776884,189.45,189.36,6.2051]
[1735725166298,20.0,189.42,189.36,6.2051]
[1735725168028,20.0,189.41,189.36,6.2051]
[1735725168200,13.197,189.44,189.36,6.2051]
[1735725169324,20.0,189.43,189.36,6.2051]
[1735725170732,20.0,189.43,189.37,1.6174]
[1735725172602,20.0,189.43,189.37,2.40928231]
[1735725173823,13.1944,189.48,189.39,1.6174]
[1735725174027,20.0,189.45,189.39,1.6174]
[1735725176840,20.0,189.44,189.39,1.6174]
[1735725178327,20.0,189.45,189.39,1.6174]
[1735725181813,20.0,189.43,189.39,1.6174]
[1735725186936,20.0,189.43,189.39,0.3434]
[1735725187310,20.0,189.43,189.32,6.6016]
[1735725187513,20.0,189.39,189.32,6.6016]
[1735725189043,5.70371646,189.43,189.32,65.3016]
[1735725190241,5.70371646,189.43,189.33,1.6374]
[1735725191047,13.1981,189.42,189.33,1.6374]
[1735725191211,36.974984,189.42,189.33,1.6374]
[1735725201630,13.1981,189.42,189.34,6.1699]
[1735725201836,20.0,189.41,189.34,6.1699]
[1735725202550,20.0,189.43,189.34,6.1699]
[1735725203051,23.776884,189.42,189.34,6.1699]
[1735725203631,20.0,189.41,189.34,6.1699]
[1735725204341,43.776884,189.42,189.34,6.1699]
[1735725205474,13.1988,189.41,189.34,6.1699]
[1735725205630,23.776884,189.4,189.34,6.1699]
[1735725206527,13.2002,189.39,189.34,6.1699]
[1735725215144,23.776884,189.38,189.34,6.1699]
[1735725216581,13.2002,189.39,189.34,6.1699]
[1735725217769,20.0,189.38,189.34,6.1699]
[1735725217959,20.0,189.39,189.34,6.1699]
[1735725226175,13.1984,189.42,189.34,6.1699]
[1735725227371,38.2293462,189.45,189.34,6.1699]
[1735725227372,20.0,189.41,189.34,6.1699]
[1735725228245,11.8372462,189.44,189.34,6.1699]
[1735725228449,23.776884,189.44,189.34,6.1699]